[Event "Titled Tuesday Blitz June 27 Late 2023"]
[White "Fantinel, Thibault"]
[Black "Mahdavi, Reza"]
[WhiteFideId "663395"]
[BlackFideId "12595926"]
[WhiteElo "2587"]
[BlackElo "2748"]
[Result "1/2-1/2"]
[Round "7"]
[TimeControl "180+2"]
[Date "2023.06.27"]
[WhiteClock "0:00:06"]
[BlackClock "0:00:06"]
[Board "39"]

1. c4 {[%clk 0:03:00]}  e5 {[%clk 0:02:39]} 2. g3 {[%clk 0:02:59]}  c6 {[%clk 0:02:33]} 3. Nf3 {[%clk 0:02:59]}  e4 {[%clk 0:02:25]} 4. Nd4 {[%clk 0:02:58]}  d5 {[%clk 0:02:24]} 5. d3 {[%clk 0:02:58]}  Bc5 {[%clk 0:02:20]} 6. Nb3 {[%clk 0:02:54]}  Bb4+ {[%clk 0:02:18]} 7. Bd2 {[%clk 0:02:55]}  Bxd2+ {[%clk 0:02:18]} 8. Qxd2 {[%clk 0:02:55]}  dxc4 {[%clk 0:02:17]} 9. dxc4 {[%clk 0:02:56]}  f5 {[%clk 0:02:16]} 10. Qxd8+ {[%clk 0:02:43]}  Kxd8 {[%clk 0:02:17]} 11. Bh3 {[%clk 0:02:43]}  Nf6 {[%clk 0:02:17]} 12. Nc3 {[%clk 0:02:43]}  Ke7 {[%clk 0:02:17]} 13. f3 {[%clk 0:02:43]}  exf3 {[%clk 0:02:12]} 14. exf3 {[%clk 0:02:42]}  Rd8 {[%clk 0:02:11]} 15. Kf2 {[%clk 0:02:40]}  Kf7 {[%clk 0:02:09]} 16. Rad1 {[%clk 0:02:38]}  Rxd1 {[%clk 0:02:05]} 17. Rxd1 {[%clk 0:02:39]}  Na6 {[%clk 0:01:51]} 18. Bf1 {[%clk 0:02:18]}  Be6 {[%clk 0:01:45]} 19. Nd4 {[%clk 0:02:14]}  g6 {[%clk 0:01:43]} 20. a3 {[%clk 0:01:56]}  Nc7 {[%clk 0:01:41]} 21. b4 {[%clk 0:01:53]}  Rd8 {[%clk 0:01:41]} 22. Nxe6 {[%clk 0:01:47]}  Nxe6 {[%clk 0:01:40]} 23. Rxd8 {[%clk 0:01:47]}  Nxd8 {[%clk 0:01:41]} 24. c5 {[%clk 0:01:47]}  Ke7 {[%clk 0:01:40]} 25. Ke3 {[%clk 0:01:46]}  Nf7 {[%clk 0:01:40]} 26. f4 {[%clk 0:01:43]}  Ng4+ {[%clk 0:01:40]} 27. Kd4 {[%clk 0:01:41]}  Nxh2 {[%clk 0:01:40]} 28. Bc4 {[%clk 0:01:41]}  Nh6 {[%clk 0:01:30]} 29. a4 {[%clk 0:01:33]}  Nf7 {[%clk 0:01:27]} 30. b5 {[%clk 0:01:33]}  Nd8 {[%clk 0:01:27]} 31. b6 {[%clk 0:01:27]}  a5 {[%clk 0:01:17]} 32. Nb1 {[%clk 0:01:18]}  Ne6+ {[%clk 0:01:17]} 33. Bxe6 {[%clk 0:01:17]}  Kxe6 {[%clk 0:01:18]} 34. Nd2 {[%clk 0:01:17]}  h5 {[%clk 0:01:16]} 35. Nb3 {[%clk 0:01:14]}  Nf1 {[%clk 0:00:50]} 36. Nxa5 {[%clk 0:01:14]}  Nxg3 {[%clk 0:00:51]} 37. Nxb7 {[%clk 0:01:13]}  h4 {[%clk 0:00:52]} 38. Nd6 {[%clk 0:00:48]}  Kd7 {[%clk 0:00:50]} 39. a5 {[%clk 0:00:27]}  h3 {[%clk 0:00:48]} 40. a6 {[%clk 0:00:22]}  h2 {[%clk 0:00:47]} 41. a7 {[%clk 0:00:23]}  h1=Q {[%clk 0:00:46]} 42. a8=Q {[%clk 0:00:24]}  Qd5+ {[%clk 0:00:39]} 43. Ke3 {[%clk 0:00:21]}  Qxc5+ {[%clk 0:00:36]} 44. Kf3 {[%clk 0:00:21]}  Qxb6 {[%clk 0:00:24]} 45. Qe8+ {[%clk 0:00:16]}  Kxd6 {[%clk 0:00:24]} 46. Qxg6+ {[%clk 0:00:17]}  Kd5 {[%clk 0:00:21]} 47. Qf7+ {[%clk 0:00:16]}  Kc5 {[%clk 0:00:19]} 48. Kxg3 {[%clk 0:00:17]}  Qb1 {[%clk 0:00:17]} 49. Qe7+ {[%clk 0:00:14]}  Kc4 {[%clk 0:00:13]} 50. Qe6+ {[%clk 0:00:11]}  Kb5 {[%clk 0:00:12]} 51. Kh4 {[%clk 0:00:10]}  Qd3 {[%clk 0:00:06]} 52. Kg5 {[%clk 0:00:09]}  c5 {[%clk 0:00:06]} 53. Qxf5 {[%clk 0:00:03]}  Qd8+ {[%clk 0:00:05]} 54. Qf6 {[%clk 0:00:03]}  Qg8+ {[%clk 0:00:05]} 55. Qg6 {[%clk 0:00:03]}  Qd8+ {[%clk 0:00:05]} 56. Qf6 {[%clk 0:00:04]}  Qd2 {[%clk 0:00:06]} 57. Qe7 {[%clk 0:00:02]}  Kb4 {[%clk 0:00:05]} 58. Qb7+ {[%clk 0:00:02]}  Kc3 {[%clk 0:00:05]} 59. Qg7+ {[%clk 0:00:02]}  Kb3 {[%clk 0:00:04]} 60. Qb7+ {[%clk 0:00:02]}  Kc2 {[%clk 0:00:04]} 61. Qe4+ {[%clk 0:00:02]}  Kc3 {[%clk 0:00:04]} 62. Kg6 {[%clk 0:00:03]}  c4 {[%clk 0:00:04]} 63. f5 {[%clk 0:00:03]}  Kb3 {[%clk 0:00:02]} 64. f6 {[%clk 0:00:04]}  c3 {[%clk 0:00:02]} 65. f7 {[%clk 0:00:04]}  Qd6+ {[%clk 0:00:03]} 66. Kg7 {[%clk 0:00:04]}  Qg3+ {[%clk 0:00:04]} 67. Kf8 {[%clk 0:00:04]}  c2 {[%clk 0:00:04]} 68. Qb7+ {[%clk 0:00:03]}  Ka2 {[%clk 0:00:03]} 69. Qa6+ {[%clk 0:00:03]}  Kb1 {[%clk 0:00:04]} 70. Qb5+ {[%clk 0:00:04]}  Kc1 {[%clk 0:00:04]} 71. Qf1+ {[%clk 0:00:04]}  Kd2 {[%clk 0:00:05]} 72. Ke8 {[%clk 0:00:03]}  Qe5+ {[%clk 0:00:05]} 73. Kf8 {[%clk 0:00:03]}  Qh8+ {[%clk 0:00:03]} 74. Ke7 {[%clk 0:00:03]}  Qe5+ {[%clk 0:00:04]} 75. Kf8 {[%clk 0:00:04]}  c1=Q {[%clk 0:00:03]} 76. Qxc1+ {[%clk 0:00:04]}  Kxc1 {[%clk 0:00:04]} 77. Kg8 {[%clk 0:00:04]}  Qg5+ {[%clk 0:00:05]} 78. Kh8 {[%clk 0:00:04]}  Qh6+ {[%clk 0:00:05]} 79. Kg8 {[%clk 0:00:05]}  Qg6+ {[%clk 0:00:06]} 80. Kh8 {[%clk 0:00:06]}  Qxf7 {[%clk 0:00:06]} 1/2-1/2


[Site "https://www.chess.com"]

[Event "Titled Tuesday Blitz June 27 Late 2023"]
[White "Troff, Kayden"]
[Black "Manukyan, Artyom"]
[WhiteFideId "2047896"]
[BlackFideId "13305786"]
[WhiteElo "2731"]
[BlackElo "2575"]
[Result "1-0"]
[Round "7"]
[TimeControl "180+2"]
[Date "2023.06.27"]
[WhiteClock "0:00:30"]
[BlackClock "0:00:07"]
[Board "40"]

1. d4 {[%clk 0:03:00]}  d5 {[%clk 0:02:57]} 2. Nf3 {[%clk 0:03:01]}  Nf6 {[%clk 0:02:57]} 3. Bf4 {[%clk 0:03:01]}  c5 {[%clk 0:02:56]} 4. e3 {[%clk 0:03:01]}  Nc6 {[%clk 0:02:53]} 5. Nc3 {[%clk 0:03:00]}  cxd4 {[%clk 0:02:48]} 6. Nxd4 {[%clk 0:02:49]}  Nxd4 {[%clk 0:02:43]} 7. Qxd4 {[%clk 0:02:48]}  a6 {[%clk 0:02:43]} 8. O-O-O {[%clk 0:02:44]}  e6 {[%clk 0:02:42]} 9. e4 {[%clk 0:02:43]}  Qa5 {[%clk 0:02:09]} 10. exd5 {[%clk 0:02:39]}  Bc5 {[%clk 0:02:09]} 11. Bb5+ {[%clk 0:01:37]}  Qxb5 {[%clk 0:01:42]} 12. Nxb5 {[%clk 0:01:37]}  Bxd4 {[%clk 0:01:43]} 13. Nc7+ {[%clk 0:01:34]}  Ke7 {[%clk 0:01:34]} 14. Nxa8 {[%clk 0:01:11]}  e5 {[%clk 0:01:30]} 15. Be3 {[%clk 0:01:11]}  Bg4 {[%clk 0:01:23]} 16. Bxd4 {[%clk 0:01:06]}  exd4 {[%clk 0:01:13]} 17. f3 {[%clk 0:01:04]}  Bf5 {[%clk 0:00:57]} 18. Nb6 {[%clk 0:01:00]}  Kd6 {[%clk 0:00:57]} 19. Rxd4 {[%clk 0:00:52]}  Kc5 {[%clk 0:00:56]} 20. Rf4 {[%clk 0:00:52]}  Bg6 {[%clk 0:00:52]} 21. Na4+ {[%clk 0:00:49]}  Kxd5 {[%clk 0:00:52]} 22. Rd1+ {[%clk 0:00:41]}  Ke5 {[%clk 0:00:50]} 23. Rc4 {[%clk 0:00:37]}  b5 {[%clk 0:00:25]} 24. Rc5+ {[%clk 0:00:37]}  Ke6 {[%clk 0:00:25]} 25. Nb6 {[%clk 0:00:32]}  Rb8 {[%clk 0:00:22]} 26. Rc6+ {[%clk 0:00:32]}  Ke5 {[%clk 0:00:07]} 27. Rxf6 {[%clk 0:00:30]} 1-0


[Site "https://www.chess.com"]

[Event "Titled Tuesday Blitz June 27 Late 2023"]
[White "Krishnan, Varun"]
[Black "Fisher_TheGalactic"]
[WhiteFideId "5054508"]
[WhiteElo "2544"]
[BlackElo "2700"]
[Result "1-0"]
[Round "7"]
[TimeControl "180+2"]
[Date "2023.06.27"]
[WhiteClock "0:00:05"]
[BlackClock "0:00:03"]
[Board "43"]

1. g3 {[%clk 0:03:00]}  c5 {[%clk 0:02:58]} 2. e4 {[%clk 0:02:57]}  Nc6 {[%clk 0:02:58]} 3. Bg2 {[%clk 0:02:57]}  b6 {[%clk 0:02:57]} 4. Ne2 {[%clk 0:02:58]}  Bb7 {[%clk 0:02:57]} 5. c3 {[%clk 0:02:55]}  e6 {[%clk 0:02:56]} 6. d4 {[%clk 0:02:54]}  d6 {[%clk 0:02:52]} 7. O-O {[%clk 0:02:51]}  Nf6 {[%clk 0:02:51]} 8. Na3 {[%clk 0:02:39]}  Be7 {[%clk 0:02:46]} 9. Nc4 {[%clk 0:02:31]}  cxd4 {[%clk 0:02:41]} 10. cxd4 {[%clk 0:02:31]}  d5 {[%clk 0:02:42]} 11. exd5 {[%clk 0:02:27]}  Nxd5 {[%clk 0:02:43]} 12. Nc3 {[%clk 0:02:21]}  Nxc3 {[%clk 0:02:32]} 13. bxc3 {[%clk 0:02:20]}  O-O {[%clk 0:02:32]} 14. Qh5 {[%clk 0:02:16]}  Rc8 {[%clk 0:02:24]} 15. Ne3 {[%clk 0:02:15]}  Na5 {[%clk 0:02:22]} 16. d5 {[%clk 0:02:00]}  exd5 {[%clk 0:02:13]} 17. Nxd5 {[%clk 0:01:58]}  Bxd5 {[%clk 0:01:55]} 18. Bxd5 {[%clk 0:01:57]}  Rxc3 {[%clk 0:01:56]} 19. Bb2 {[%clk 0:01:54]}  Rc5 {[%clk 0:01:55]} 20. Rad1 {[%clk 0:01:53]}  Qc8 {[%clk 0:01:43]} 21. Rfe1 {[%clk 0:01:51]}  Nc6 {[%clk 0:00:40]} 22. Qf3 {[%clk 0:01:21]}  Bg5 {[%clk 0:00:32]} 23. Ba3 {[%clk 0:01:17]}  Ne7 {[%clk 0:00:24]} 24. Bxc5 {[%clk 0:01:04]}  bxc5 {[%clk 0:00:21]} 25. Bc4 {[%clk 0:01:01]}  Bf6 {[%clk 0:00:20]} 26. Rd6 {[%clk 0:00:51]}  Ng6 {[%clk 0:00:20]} 27. Qd5 {[%clk 0:00:44]}  Ne7 {[%clk 0:00:16]} 28. Qd3 {[%clk 0:00:40]}  Ng6 {[%clk 0:00:16]} 29. Rd5 {[%clk 0:00:25]}  Bd4 {[%clk 0:00:12]} 30. Rf5 {[%clk 0:00:21]}  Qc7 {[%clk 0:00:10]} 31. Qf3 {[%clk 0:00:18]}  Ne5 {[%clk 0:00:06]} 32. Qd5 {[%clk 0:00:14]}  Nxc4 {[%clk 0:00:05]} 33. Qxc4 {[%clk 0:00:14]}  g6 {[%clk 0:00:05]} 34. Rd5 {[%clk 0:00:13]}  Qa5 {[%clk 0:00:05]} 35. Rd1 {[%clk 0:00:11]}  Qa3 {[%clk 0:00:02]} 36. Qb3 {[%clk 0:00:11]}  Qa6 {[%clk 0:00:02]} 37. Rd7 {[%clk 0:00:11]}  Qc6 {[%clk 0:00:02]} 38. Qd5 {[%clk 0:00:10]}  Qf6 {[%clk 0:00:02]} 39. Rxa7 {[%clk 0:00:09]}  Qxf2+ {[%clk 0:00:02]} 40. Kh1 {[%clk 0:00:09]}  Qf6 {[%clk 0:00:02]} 41. Rd7 {[%clk 0:00:08]}  h5 {[%clk 0:00:02]} 42. Qg2 {[%clk 0:00:08]}  h4 {[%clk 0:00:02]} 43. gxh4 {[%clk 0:00:07]}  Qxh4 {[%clk 0:00:03]} 44. Rd5 {[%clk 0:00:06]}  Re8 {[%clk 0:00:04]} 45. Rf1 {[%clk 0:00:06]}  Kg7 {[%clk 0:00:03]} 46. Rd7 {[%clk 0:00:06]}  Bf6 {[%clk 0:00:02]} 47. Rb7 {[%clk 0:00:06]}  Re5 {[%clk 0:00:02]} 48. Rb6 {[%clk 0:00:06]}  Rg5 {[%clk 0:00:02]} 49. Qf2 {[%clk 0:00:05]}  Rf5 {[%clk 0:00:03]} 50. Qxh4 {[%clk 0:00:04]}  Rxf1+ {[%clk 0:00:03]} 51. Kg2 {[%clk 0:00:05]}  Bxh4 {[%clk 0:00:03]} 52. Kxf1 {[%clk 0:00:06]}  Bf6 {[%clk 0:00:01]} 53. a4 {[%clk 0:00:06]}  c4 {[%clk 0:00:01]} 54. Rc6 {[%clk 0:00:06]}  c3 {[%clk 0:00:02]} 55. a5 {[%clk 0:00:06]}  Bd4 {[%clk 0:00:03]} 56. a6 {[%clk 0:00:06]}  Kf8 {[%clk 0:00:04]} 57. Ke2 {[%clk 0:00:06]}  Ke7 {[%clk 0:00:04]} 58. Kd3 {[%clk 0:00:06]}  Kd7 {[%clk 0:00:05]} 59. Rc4 {[%clk 0:00:06]}  Bg1 {[%clk 0:00:05]} 60. Rxc3 {[%clk 0:00:06]}  Bxh2 {[%clk 0:00:03]} 61. a7 {[%clk 0:00:05]} 1-0


[Site "https://www.chess.com"]

[Event "Titled Tuesday Blitz June 27 Late 2023"]
[White "Chor, Kevin"]
[Black "Korchmar, Vasiliy"]
[WhiteFideId "2090740"]
[BlackFideId "24131750"]
[WhiteElo "2541"]
[BlackElo "2694"]
[Result "0-1"]
[Round "7"]
[TimeControl "180+2"]
[Date "2023.06.27"]
[WhiteClock "0:00:27"]
[BlackClock "0:01:34"]
[Board "45"]

1. e4 {[%clk 0:02:58]}  c5 {[%clk 0:03:00]} 2. Nf3 {[%clk 0:02:58]}  d6 {[%clk 0:03:00]} 3. d4 {[%clk 0:02:52]}  cxd4 {[%clk 0:03:01]} 4. Nxd4 {[%clk 0:02:52]}  Nf6 {[%clk 0:03:02]} 5. Nc3 {[%clk 0:02:53]}  Nc6 {[%clk 0:03:02]} 6. Bg5 {[%clk 0:02:52]}  Bd7 {[%clk 0:03:02]} 7. Qd2 {[%clk 0:02:47]}  a6 {[%clk 0:03:02]} 8. f3 {[%clk 0:02:38]}  e6 {[%clk 0:02:57]} 9. O-O-O {[%clk 0:02:38]}  Be7 {[%clk 0:02:57]} 10. h4 {[%clk 0:02:37]}  Nxd4 {[%clk 0:02:55]} 11. Qxd4 {[%clk 0:02:37]}  b5 {[%clk 0:02:56]} 12. Kb1 {[%clk 0:02:35]}  Qc7 {[%clk 0:02:56]} 13. g4 {[%clk 0:02:31]}  O-O {[%clk 0:02:52]} 14. h5 {[%clk 0:02:17]}  b4 {[%clk 0:02:49]} 15. Ne2 {[%clk 0:02:05]}  Rfc8 {[%clk 0:02:46]} 16. Rc1 {[%clk 0:01:58]}  e5 {[%clk 0:01:59]} 17. Qd2 {[%clk 0:01:49]}  Be6 {[%clk 0:01:58]} 18. Rd1 {[%clk 0:01:36]}  Nxe4 {[%clk 0:01:56]} 19. fxe4 {[%clk 0:01:27]}  Bxg5 {[%clk 0:01:56]} 20. Qd3 {[%clk 0:01:17]}  Bc4 {[%clk 0:01:56]} 21. Qf3 {[%clk 0:01:00]}  Bxa2+ {[%clk 0:01:34]} 22. Kxa2 {[%clk 0:00:59]}  Qxc2 {[%clk 0:01:35]} 23. Qd3 {[%clk 0:00:50]}  Qa4+ {[%clk 0:01:33]} 24. Kb1 {[%clk 0:00:27]}  b3 {[%clk 0:01:34]} 0-1


[Site "https://www.chess.com"]

[Event "Titled Tuesday Blitz June 27 Late 2023"]
[White "Boyer, Mahel"]
[Black "ArchibaldCerveza29"]
[WhiteFideId "45102422"]
[WhiteElo "2694"]
[BlackElo "2526"]
[Result "1-0"]
[Round "7"]
[TimeControl "180+2"]
[Date "2023.06.27"]
[WhiteClock "0:01:49"]
[BlackClock "0:00:05"]
[Board "46"]

1. Nf3 {[%clk 0:02:36]}  d5 {[%clk 0:02:59]} 2. g3 {[%clk 0:02:37]}  Nf6 {[%clk 0:02:59]} 3. Bg2 {[%clk 0:02:38]}  e6 {[%clk 0:02:59]} 4. O-O {[%clk 0:02:38]}  Be7 {[%clk 0:03:00]} 5. d3 {[%clk 0:02:39]}  O-O {[%clk 0:03:01]} 6. Nbd2 {[%clk 0:02:39]}  c5 {[%clk 0:03:02]} 7. e4 {[%clk 0:02:40]}  Nc6 {[%clk 0:03:03]} 8. Re1 {[%clk 0:02:39]}  b5 {[%clk 0:03:03]} 9. exd5 {[%clk 0:02:38]}  exd5 {[%clk 0:03:01]} 10. a4 {[%clk 0:02:39]}  b4 {[%clk 0:03:00]} 11. d4 {[%clk 0:02:40]}  Re8 {[%clk 0:02:43]} 12. dxc5 {[%clk 0:02:32]}  Bxc5 {[%clk 0:02:44]} 13. Rxe8+ {[%clk 0:02:33]}  Qxe8 {[%clk 0:02:42]} 14. Nb3 {[%clk 0:02:33]}  Bb6 {[%clk 0:02:40]} 15. a5 {[%clk 0:02:25]}  Bc7 {[%clk 0:02:36]} 16. Bg5 {[%clk 0:02:20]}  Be6 {[%clk 0:02:13]} 17. Bxf6 {[%clk 0:02:20]}  gxf6 {[%clk 0:02:14]} 18. Nfd4 {[%clk 0:02:20]}  Rd8 {[%clk 0:02:00]} 19. Qd2 {[%clk 0:02:13]}  Ne5 {[%clk 0:01:27]} 20. Qxb4 {[%clk 0:02:09]}  Nc4 {[%clk 0:01:19]} 21. Nc5 {[%clk 0:02:02]}  Rb8 {[%clk 0:01:17]} 22. Qc3 {[%clk 0:01:53]}  Rxb2 {[%clk 0:01:08]} 23. Ndxe6 {[%clk 0:01:53]}  fxe6 {[%clk 0:00:59]} 24. Qxf6 {[%clk 0:01:54]}  Qg6 {[%clk 0:00:17]} 25. Qxe6+ {[%clk 0:01:53]}  Qxe6 {[%clk 0:00:16]} 26. Nxe6 {[%clk 0:01:53]}  Be5 {[%clk 0:00:16]} 27. Bxd5 {[%clk 0:01:54]}  Rxc2 {[%clk 0:00:14]} 28. Re1 {[%clk 0:01:53]}  Kh8 {[%clk 0:00:10]} 29. Bxc4 {[%clk 0:01:52]}  Bc3 {[%clk 0:00:05]} 30. Re4 {[%clk 0:01:49]} 1-0


[Site "https://www.chess.com"]

[Event "Titled Tuesday Blitz June 27 Late 2023"]
[White "Sukandar, Irine Kharisma"]
[Black "Mirzoev, Azer"]
[WhiteFideId "7101937"]
[BlackFideId "13400304"]
[WhiteElo "2463"]
[BlackElo "2691"]
[Result "1-0"]
[Round "7"]
[TimeControl "180+2"]
[Date "2023.06.27"]
[WhiteClock "0:00:09"]
[BlackClock "0:00:00"]
[Board "48"]

1. e4 {[%clk 0:03:00]}  c6 {[%clk 0:03:00]} 2. Qe2 {[%clk 0:02:49]}  d5 {[%clk 0:03:01]} 3. d3 {[%clk 0:02:49]}  g6 {[%clk 0:02:49]} 4. g3 {[%clk 0:02:48]}  Bg7 {[%clk 0:02:49]} 5. Bg2 {[%clk 0:02:49]}  dxe4 {[%clk 0:02:27]} 6. dxe4 {[%clk 0:02:49]}  b6 {[%clk 0:02:28]} 7. Nf3 {[%clk 0:02:48]}  Ba6 {[%clk 0:02:27]} 8. c4 {[%clk 0:02:48]}  Nf6 {[%clk 0:02:20]} 9. O-O {[%clk 0:02:48]}  O-O {[%clk 0:02:20]} 10. Rd1 {[%clk 0:02:48]}  Qc8 {[%clk 0:02:17]} 11. Nc3 {[%clk 0:02:35]}  Nfd7 {[%clk 0:02:10]} 12. Bd2 {[%clk 0:02:31]}  Nc5 {[%clk 0:02:06]} 13. Rac1 {[%clk 0:02:28]}  Nbd7 {[%clk 0:02:03]} 14. b4 {[%clk 0:02:25]}  Ne6 {[%clk 0:02:02]} 15. b5 {[%clk 0:02:24]}  Bb7 {[%clk 0:02:03]} 16. bxc6 {[%clk 0:02:21]}  Bxc6 {[%clk 0:02:02]} 17. Nd5 {[%clk 0:02:21]}  Re8 {[%clk 0:02:02]} 18. Bb4 {[%clk 0:02:19]}  Ndc5 {[%clk 0:02:01]} 19. Bc3 {[%clk 0:02:10]}  Bxc3 {[%clk 0:01:59]} 20. Rxc3 {[%clk 0:02:09]}  Qb7 {[%clk 0:01:48]} 21. Ne5 {[%clk 0:02:09]}  Ba4 {[%clk 0:01:47]} 22. Re1 {[%clk 0:01:52]}  Kg7 {[%clk 0:01:46]} 23. f4 {[%clk 0:01:46]}  f6 {[%clk 0:01:45]} 24. Nf3 {[%clk 0:01:33]}  Rad8 {[%clk 0:01:43]} 25. f5 {[%clk 0:01:30]}  Nf8 {[%clk 0:01:34]} 26. e5 {[%clk 0:01:26]}  Bc6 {[%clk 0:01:15]} 27. Nd4 {[%clk 0:01:17]}  Bxd5 {[%clk 0:01:14]} 28. cxd5 {[%clk 0:01:10]}  Qd7 {[%clk 0:00:47]} 29. Ne6+ {[%clk 0:00:46]}  Nfxe6 {[%clk 0:00:46]} 30. fxe6 {[%clk 0:00:46]}  Qc8 {[%clk 0:00:35]} 31. exf6+ {[%clk 0:00:44]}  exf6 {[%clk 0:00:35]} 32. Qf2 {[%clk 0:00:32]}  Qc7 {[%clk 0:00:32]} 33. Rec1 {[%clk 0:00:26]}  Qe5 {[%clk 0:00:22]} 34. Re3 {[%clk 0:00:21]}  Qd6 {[%clk 0:00:21]} 35. Rf1 {[%clk 0:00:20]}  Re7 {[%clk 0:00:20]} 36. Qxf6+ {[%clk 0:00:19]}  Kg8 {[%clk 0:00:20]} 37. Qg5 {[%clk 0:00:17]}  Rf8 {[%clk 0:00:16]} 38. Rxf8+ {[%clk 0:00:17]}  Kxf8 {[%clk 0:00:16]} 39. Rf3+ {[%clk 0:00:16]}  Kg8 {[%clk 0:00:16]} 40. Qf6 {[%clk 0:00:16]}  Rc7 {[%clk 0:00:15]} 41. Rf1 {[%clk 0:00:12]}  a5 {[%clk 0:00:11]} 42. Qg5 {[%clk 0:00:10]}  Rc8 {[%clk 0:00:08]} 43. Rf7 {[%clk 0:00:09]}  Rf8 {[%clk 0:00:00]} 44. Qf6 {[%clk 0:00:09]} 1-0


[Site "https://www.chess.com"]

[Event "Titled Tuesday Blitz June 27 Late 2023"]
[White "Hamidi, Amir Mohammad"]
[Black "Coelho, Ramyres Santana"]
[WhiteFideId "12563285"]
[BlackFideId "2120690"]
[WhiteElo "2816"]
[BlackElo "2330"]
[Result "1-0"]
[Round "7"]
[TimeControl "180+2"]
[Date "2023.06.27"]
[WhiteClock "0:01:55"]
[BlackClock "0:00:00"]
[Board "51"]

1. d4 {[%clk 0:03:00]}  c5 {[%clk 0:02:59]} 2. dxc5 {[%clk 0:02:55]}  e6 {[%clk 0:02:58]} 3. Nc3 {[%clk 0:02:53]}  Bxc5 {[%clk 0:02:57]} 4. e4 {[%clk 0:02:41]}  Qh4 {[%clk 0:02:49]} 5. Qf3 {[%clk 0:02:28]}  Nc6 {[%clk 0:02:47]} 6. Bd3 {[%clk 0:02:26]}  Nd4 {[%clk 0:02:44]} 7. Qg3 {[%clk 0:02:27]}  Qf6 {[%clk 0:02:39]} 8. e5 {[%clk 0:02:22]}  Qd8 {[%clk 0:01:46]} 9. Qxg7 {[%clk 0:02:17]}  Qh4 {[%clk 0:01:36]} 10. Ne4 {[%clk 0:02:11]}  Bb6 {[%clk 0:00:25]} 11. Bg5 {[%clk 0:02:01]}  Nf5 {[%clk 0:00:12]} 12. Nd6+ {[%clk 0:01:54]}  Nxd6 {[%clk 0:00:00]} 13. Bxh4 {[%clk 0:01:55]} 1-0


[Site "https://www.chess.com"]

[Event "Titled Tuesday Blitz June 27 Late 2023"]
[White "Pakleza, Zbigniew"]
[Black "Nefedov, Sergey"]
[WhiteFideId "1119290"]
[BlackFideId "24113417"]
[WhiteElo "2718"]
[BlackElo "2568"]
[Result "0-1"]
[Round "7"]
[TimeControl "180+2"]
[Date "2023.06.27"]
[WhiteClock "0:00:03"]
[BlackClock "0:00:06"]
[Board "53"]

1. d4 {[%clk 0:02:54]}  d5 {[%clk 0:02:55]} 2. Bf4 {[%clk 0:02:54]}  Bf5 {[%clk 0:02:46]} 3. c4 {[%clk 0:02:53]}  c6 {[%clk 0:02:45]} 4. cxd5 {[%clk 0:02:52]}  cxd5 {[%clk 0:02:45]} 5. Nc3 {[%clk 0:02:53]}  Nc6 {[%clk 0:02:43]} 6. Qb3 {[%clk 0:02:40]}  Nxd4 {[%clk 0:02:37]} 7. Qxb7 {[%clk 0:02:14]}  Nc2+ {[%clk 0:02:34]} 8. Kd2 {[%clk 0:02:06]}  Nxa1 {[%clk 0:02:31]} 9. e3 {[%clk 0:01:34]}  f6 {[%clk 0:02:20]} 10. Nf3 {[%clk 0:01:27]}  g5 {[%clk 0:02:08]} 11. Bc7 {[%clk 0:01:13]}  Qc8 {[%clk 0:01:54]} 12. Ba6 {[%clk 0:01:14]}  Kf7 {[%clk 0:01:03]} 13. Rxa1 {[%clk 0:01:07]}  Qxb7 {[%clk 0:00:49]} 14. Bxb7 {[%clk 0:01:08]}  Re8 {[%clk 0:00:50]} 15. Nd4 {[%clk 0:00:59]}  Nh6 {[%clk 0:00:34]} 16. Bxd5+ {[%clk 0:00:46]}  e6 {[%clk 0:00:33]} 17. Bb3 {[%clk 0:00:42]}  Bb4 {[%clk 0:00:28]} 18. Rc1 {[%clk 0:00:37]}  Rc8 {[%clk 0:00:16]} 19. Bg3 {[%clk 0:00:37]}  Rhd8 {[%clk 0:00:16]} 20. Ke1 {[%clk 0:00:34]}  Ke7 {[%clk 0:00:15]} 21. a3 {[%clk 0:00:29]}  Bxc3+ {[%clk 0:00:14]} 22. bxc3 {[%clk 0:00:29]}  e5 {[%clk 0:00:14]} 23. Ne2 {[%clk 0:00:11]}  Be6 {[%clk 0:00:14]} 24. c4 {[%clk 0:00:12]}  Nf5 {[%clk 0:00:13]} 25. Rc3 {[%clk 0:00:04]}  h5 {[%clk 0:00:12]} 26. f3 {[%clk 0:00:03]}  Nxg3 {[%clk 0:00:08]} 27. Nxg3 {[%clk 0:00:04]}  h4 {[%clk 0:00:08]} 28. Ne4 {[%clk 0:00:04]}  Rb8 {[%clk 0:00:06]} 29. Nd2 {[%clk 0:00:02]}  Bf7 {[%clk 0:00:05]} 30. Ke2 {[%clk 0:00:02]}  Rd7 {[%clk 0:00:05]} 31. e4 {[%clk 0:00:02]}  Rbd8 {[%clk 0:00:05]} 32. Rc2 {[%clk 0:00:01]}  Rd4 {[%clk 0:00:04]} 33. Ba2 {[%clk 0:00:01]}  Rd3 {[%clk 0:00:04]} 34. Nf1 {[%clk 0:00:02]}  Rxa3 {[%clk 0:00:05]} 35. Ne3 {[%clk 0:00:02]}  Kf8 {[%clk 0:00:03]} 36. Rb2 {[%clk 0:00:02]}  Rc8 {[%clk 0:00:02]} 37. g3 {[%clk 0:00:02]}  hxg3 {[%clk 0:00:02]} 38. hxg3 {[%clk 0:00:03]}  Ra6 {[%clk 0:00:02]} 39. Rd2 {[%clk 0:00:02]}  Rb6 {[%clk 0:00:03]} 40. Nd5 {[%clk 0:00:02]}  Ra6 {[%clk 0:00:03]} 41. Ne3 {[%clk 0:00:01]}  Be6 {[%clk 0:00:03]} 42. Bb1 {[%clk 0:00:01]}  Ke7 {[%clk 0:00:03]} 43. Bd3 {[%clk 0:00:02]}  Rc7 {[%clk 0:00:04]} 44. Rb2 {[%clk 0:00:03]}  Rb6 {[%clk 0:00:04]} 45. Rc2 {[%clk 0:00:03]}  a5 {[%clk 0:00:04]} 46. c5 {[%clk 0:00:03]}  Rbc6 {[%clk 0:00:03]} 47. Rb2 {[%clk 0:00:02]}  Rxc5 {[%clk 0:00:04]} 48. Rb6 {[%clk 0:00:03]}  R5c6 {[%clk 0:00:04]} 49. Rb8 {[%clk 0:00:04]}  Ra7 {[%clk 0:00:04]} 50. Rb1 {[%clk 0:00:03]}  a4 {[%clk 0:00:04]} 51. Ra1 {[%clk 0:00:03]}  a3 {[%clk 0:00:05]} 52. Kd2 {[%clk 0:00:03]}  a2 {[%clk 0:00:05]} 53. Nc2 {[%clk 0:00:04]}  Rb6 {[%clk 0:00:05]} 54. Kc3 {[%clk 0:00:04]}  Rb1 {[%clk 0:00:05]} 55. f4 {[%clk 0:00:01]}  Rc7+ {[%clk 0:00:05]} 56. Kd2 {[%clk 0:00:01]}  Rxc2+ {[%clk 0:00:06]} 57. Bxc2 {[%clk 0:00:02]}  Rxa1 {[%clk 0:00:06]} 58. fxe5 {[%clk 0:00:03]}  fxe5 {[%clk 0:00:06]} 0-1


[Site "https://www.chess.com"]